[Event "Late-Titled-Tuesday-Blitz-June-18-2024"]
[Site "Chess.com"]
[Date "2024.06.18"]
[Round "2"]
[White "champ2005"]
[Black "Renatoforf"]
[Result "1-0"]
[WhiteElo "3069"]
[BlackElo "2119"]
[TimeControl "180+1"]
[EndTime "14:15:42 PDT"]
[Termination "champ2005 won by resignation"]

1. e4 {[%clk 0:03:00.9]} 1... c5 {[%clk 0:02:58.6]} 2. Nf3 {[%clk 0:03:01.3]}
2... d6 {[%clk 0:02:57.7]} 3. b3 {[%clk 0:02:59.9]} 3... Nf6 {[%clk 0:02:56.3]}
4. d3 {[%clk 0:03:00.3]} 4... g6 {[%clk 0:02:54.2]} 5. Bb2 {[%clk 0:03:00.5]}
5... Bg7 {[%clk 0:02:54.5]} 6. g3 {[%clk 0:02:58]} 6... O-O {[%clk 0:02:54.6]}
7. Bg2 {[%clk 0:02:58.6]} 7... Nc6 {[%clk 0:02:54.4]} 8. O-O {[%clk 0:02:58.8]}
8... e5 {[%clk 0:02:52.8]} 9. Nc3 {[%clk 0:02:56.2]} 9... Bg4 {[%clk 0:02:51]}
10. h3 {[%clk 0:02:56.1]} 10... Bxf3 {[%clk 0:02:50.2]} 11. Qxf3 {[%clk
0:02:57]} 11... Nd4 {[%clk 0:02:49.4]} 12. Qd1 {[%clk 0:02:57.6]} 12... Nd7
{[%clk 0:02:42.1]} 13. Nd5 {[%clk 0:02:57.3]} 13... Nb6 {[%clk 0:02:39.8]} 14.
Ne3 {[%clk 0:02:57.1]} 14... Rc8 {[%clk 0:02:33.4]} 15. a4 {[%clk 0:02:57]}
15... a5 {[%clk 0:02:32.4]} 16. Kh1 {[%clk 0:02:54.2]} 16... Nd7 {[%clk
0:02:31.1]} 17. Nc4 {[%clk 0:02:47.1]} 17... Qc7 {[%clk 0:02:27.1]} 18. Qd2
{[%clk 0:02:47.2]} 18... b6 {[%clk 0:02:23.5]} 19. h4 {[%clk 0:02:47.3]} 19...
h5 {[%clk 0:02:21.5]} 20. Rae1 {[%clk 0:02:44.2]} 20... Rce8 {[%clk 0:02:18]}
21. Qd1 {[%clk 0:02:43.8]} 21... Kh7 {[%clk 0:02:13.5]} 22. Bc1 {[%clk
0:02:44.2]} 22... Bh6 {[%clk 0:02:05.7]} 23. Bxh6 {[%clk 0:02:41.3]} 23... Kxh6
{[%clk 0:02:04.8]} 24. Ne3 {[%clk 0:02:38]} 24... Kg7 {[%clk 0:02:03.2]} 25. Nd5
{[%clk 0:02:38.1]} 25... Qd8 {[%clk 0:02:01.9]} 26. Bh3 {[%clk 0:02:33.6]} 26...
Nf6 {[%clk 0:02:00.2]} 27. Ne3 {[%clk 0:02:34.1]} 27... Kh7 {[%clk 0:01:53.9]}
28. Bg2 {[%clk 0:02:34]} 28... Qd7 {[%clk 0:01:51.8]} 29. c3 {[%clk 0:02:33.8]}
29... Ne6 {[%clk 0:01:50]} 30. f4 {[%clk 0:02:33.2]} 30... exf4 {[%clk
0:01:45.1]} 31. gxf4 {[%clk 0:02:34.1]} 31... Ng7 {[%clk 0:01:43.2]} 32. Qf3
{[%clk 0:02:34.5]} 32... Re7 {[%clk 0:01:39.7]} 33. Bh3 {[%clk 0:02:29.2]} 33...
Qd8 {[%clk 0:01:36.9]} 34. c4 {[%clk 0:02:19.9]} 34... Rh8 {[%clk 0:01:34.1]}
35. Rg1 {[%clk 0:02:19.8]} 35... Kg8 {[%clk 0:01:32.5]} 36. f5 {[%clk
0:02:19.2]} 36... Rh6 {[%clk 0:01:25.5]} 37. fxg6 {[%clk 0:02:13.6]} 37... fxg6
{[%clk 0:01:24]} 38. Qxf6 {[%clk 0:02:13.1]} 1-0

[Event "Late-Titled-Tuesday-Blitz-June-18-2024"]
[Site "Chess.com"]
[Date "2024.06.18"]
[Round "2"]
[White "topce"]
[Black "Colombiano07"]
[Result "1-0"]
[WhiteElo "2524"]
[BlackElo "2322"]
[TimeControl "180+1"]
[EndTime "14:15:43 PDT"]
[Termination "topce won by checkmate"]

1. e4 {[%clk 0:02:58.5]} 1... c5 {[%clk 0:03:00.5]} 2. Nf3 {[%clk 0:02:56.2]}
2... Nc6 {[%clk 0:03:00.9]} 3. Bb5 {[%clk 0:02:55.3]} 3... e5 {[%clk 0:03:01.2]}
4. c3 {[%clk 0:02:51.6]} 4... a6 {[%clk 0:02:59.8]} 5. Ba4 {[%clk 0:02:47.2]}
5... b5 {[%clk 0:02:59.2]} 6. Bc2 {[%clk 0:02:46]} 6... Bd6 {[%clk 0:02:58.8]}
7. d4 {[%clk 0:02:44]} 7... cxd4 {[%clk 0:02:59.7]} 8. cxd4 {[%clk 0:02:43.8]}
8... exd4 {[%clk 0:02:48.3]} 9. Nxd4 {[%clk 0:02:39.8]} 9... Nge7 {[%clk
0:02:45.8]} 10. Nxb5 {[%clk 0:02:34.1]} 10... Bxh2 {[%clk 0:02:34.8]} 11. Nd6+
{[%clk 0:02:30.3]} 11... Bxd6 {[%clk 0:02:33.4]} 12. Qxd6 {[%clk 0:02:31.2]}
12... Bb7 {[%clk 0:02:20.2]} 13. Nc3 {[%clk 0:02:27.9]} 13... O-O {[%clk
0:02:08.8]} 14. Bg5 {[%clk 0:02:12.9]} 14... Re8 {[%clk 0:01:52.6]} 15. O-O-O
{[%clk 0:02:10]} 15... Qa5 {[%clk 0:01:48.2]} 16. e5 {[%clk 0:01:49.4]} 16... h6
{[%clk 0:01:36.4]} 17. Bxh6 {[%clk 0:01:33.2]} 17... gxh6 {[%clk 0:01:30.5]} 18.
Qxh6 {[%clk 0:01:31]} 18... Qxe5 {[%clk 0:01:30]} 19. Bh7+ {[%clk 0:01:28]}
19... Kh8 {[%clk 0:01:29.8]} 20. Bg6+ {[%clk 0:01:27.7]} 20... Kg8 {[%clk
0:01:28.1]} 21. Qh7+ {[%clk 0:01:27.6]} 21... Kf8 {[%clk 0:01:28.9]} 22. Qxf7#
{[%clk 0:01:28.1]} 1-0

[Event "Late-Titled-Tuesday-Blitz-June-18-2024"]
[Site "Chess.com"]
[Date "2024.06.18"]
[Round "2"]
[White "mfschulz"]
[Black "HandKnit"]
[Result "1-0"]
[WhiteElo "2199"]
[BlackElo "2464"]
[TimeControl "180+1"]
[EndTime "14:15:45 PDT"]
[Termination "mfschulz won by resignation"]

1. d4 {[%clk 0:03:00.1]} 1... Nf6 {[%clk 0:02:59.4]} 2. Bg5 {[%clk 0:02:59.6]}
2... e6 {[%clk 0:02:59.9]} 3. Nd2 {[%clk 0:02:57.1]} 3... c5 {[%clk 0:02:59.2]}
4. e3 {[%clk 0:02:56.6]} 4... cxd4 {[%clk 0:02:56.8]} 5. exd4 {[%clk 0:02:56.8]}
5... b6 {[%clk 0:02:57.3]} 6. Ngf3 {[%clk 0:02:56.5]} 6... Bb7 {[%clk
0:02:57.4]} 7. Bd3 {[%clk 0:02:55.9]} 7... Be7 {[%clk 0:02:57.8]} 8. O-O {[%clk
0:02:55.6]} 8... d6 {[%clk 0:02:58.3]} 9. c3 {[%clk 0:02:55.9]} 9... Nbd7 {[%clk
0:02:58.7]} 10. Re1 {[%clk 0:02:55]} 10... O-O {[%clk 0:02:58.9]} 11. h3 {[%clk
0:02:54.7]} 11... Re8 {[%clk 0:02:58.8]} 12. Qc2 {[%clk 0:02:49.7]} 12... Qc7
{[%clk 0:02:57.3]} 13. Re2 {[%clk 0:02:46.5]} 13... a6 {[%clk 0:02:56.6]} 14.
Rae1 {[%clk 0:02:46.2]} 14... b5 {[%clk 0:02:54.5]} 15. a3 {[%clk 0:02:45.2]}
15... Qb6 {[%clk 0:02:51.1]} 16. Bxf6 {[%clk 0:02:37.8]} 16... Nxf6 {[%clk
0:02:50.3]} 17. Ne4 {[%clk 0:02:36.1]} 17... a5 {[%clk 0:02:40.4]} 18. Nxf6+
{[%clk 0:02:35.1]} 18... Bxf6 {[%clk 0:02:39.3]} 19. Bxh7+ {[%clk 0:02:35]}
19... Kf8 {[%clk 0:02:39.3]} 20. Be4 {[%clk 0:02:34]} 20... d5 {[%clk
0:02:38.9]} 21. Bd3 {[%clk 0:02:33.1]} 21... b4 {[%clk 0:02:39.1]} 22. Ne5
{[%clk 0:02:29.8]} 22... Bxe5 {[%clk 0:02:30.6]} 23. Rxe5 {[%clk 0:02:26.4]}
23... Rec8 {[%clk 0:02:24]} 24. Bf1 {[%clk 0:02:22.1]} 24... bxa3 {[%clk
0:02:00.2]} 25. bxa3 {[%clk 0:02:20.4]} 25... Qxd4 {[%clk 0:01:59.8]} 26. Qh7
{[%clk 0:02:18.6]} 26... Rxc3 {[%clk 0:01:37.9]} 27. Qh8+ {[%clk 0:02:18.1]}
27... Ke7 {[%clk 0:01:37.4]} 28. Qxg7 {[%clk 0:02:18.3]} 28... Kd8 {[%clk
0:01:17]} 29. Qxf7 {[%clk 0:02:11.8]} 29... Rc2 {[%clk 0:01:07.9]} 30. Rxe6
{[%clk 0:02:04.8]} 1-0

[Event "Late-Titled-Tuesday-Blitz-June-18-2024"]
[Site "Chess.com"]
[Date "2024.06.18"]
[Round "2"]
[White "IMJonathanCarlstedt"]
[Black "Kiborg95"]
[Result "1-0"]
[WhiteElo "2606"]
[BlackElo "2865"]
[TimeControl "180+1"]
[EndTime "14:15:57 PDT"]
[Termination "IMJonathanCarlstedt won by resignation"]

1. c4 {[%clk 0:03:00.9]} 1... d6 {[%clk 0:02:59]} 2. g3 {[%clk 0:02:57.2]} 2...
g6 {[%clk 0:02:58.9]} 3. Bg2 {[%clk 0:02:57.2]} 3... Bg7 {[%clk 0:02:59.8]} 4.
Nc3 {[%clk 0:02:53.8]} 4... Nh6 {[%clk 0:02:59.9]} 5. e4 {[%clk 0:02:48.7]} 5...
O-O {[%clk 0:02:59.9]} 6. Nge2 {[%clk 0:02:48.6]} 6... e5 {[%clk 0:03:00.3]} 7.
O-O {[%clk 0:02:46.7]} 7... c6 {[%clk 0:03:00.9]} 8. d3 {[%clk 0:02:45.7]} 8...
f5 {[%clk 0:03:01.2]} 9. f4 {[%clk 0:02:41]} 9... Na6 {[%clk 0:03:00.6]} 10. h3
{[%clk 0:02:37]} 10... Be6 {[%clk 0:02:59]} 11. Kh2 {[%clk 0:02:35.8]} 11...
fxe4 {[%clk 0:02:45.9]} 12. Nxe4 {[%clk 0:02:34]} 12... Nf7 {[%clk 0:02:46.2]}
13. fxe5 {[%clk 0:02:06.4]} 13... dxe5 {[%clk 0:02:47.1]} 14. Be3 {[%clk
0:02:03.8]} 14... Qe7 {[%clk 0:02:46.9]} 15. a3 {[%clk 0:02:00.5]} 15... Rfd8
{[%clk 0:02:44.8]} 16. Qc2 {[%clk 0:02:00.4]} 16... Rd7 {[%clk 0:02:33.6]} 17.
Rad1 {[%clk 0:01:56.8]} 17... Rad8 {[%clk 0:02:33.8]} 18. b4 {[%clk 0:01:55.9]}
18... Bf5 {[%clk 0:02:26.2]} 19. N2c3 {[%clk 0:01:53.4]} 19... h6 {[%clk
0:02:18.1]} 20. g4 {[%clk 0:01:38.9]} 20... Be6 {[%clk 0:02:18.2]} 21. Kh1
{[%clk 0:01:37.1]} 21... Kh7 {[%clk 0:01:47]} 22. Bxa7 {[%clk 0:01:34.8]} 22...
b5 {[%clk 0:01:42.1]} 23. Bc5 {[%clk 0:01:29.3]} 23... Nxc5 {[%clk 0:01:42.4]}
24. Nxc5 {[%clk 0:01:28.5]} 24... Rd6 {[%clk 0:01:42.7]} 25. cxb5 {[%clk
0:01:24.6]} 25... cxb5 {[%clk 0:01:39.2]} 26. Nxb5 {[%clk 0:01:22.5]} 26... Rb6
{[%clk 0:01:39.6]} 27. Nc3 {[%clk 0:01:19.1]} 27... Qh4 {[%clk 0:01:38.8]} 28.
Nxe6 {[%clk 0:01:15.8]} 28... Rxe6 {[%clk 0:01:39.7]} 1-0

[Event "Late-Titled-Tuesday-Blitz-June-18-2024"]
[Site "Chess.com"]
[Date "2024.06.18"]
[Round "2"]
[White "OverallStranger"]
[Black "EddieMarsalla"]
[Result "1-0"]
[WhiteElo "2355"]
[BlackElo "2664"]
[TimeControl "180+1"]
[EndTime "14:16:09 PDT"]
[Termination "OverallStranger won by resignation"]

1. e4 {[%clk 0:03:00.9]} 1... c6 {[%clk 0:02:59.1]} 2. d4 {[%clk 0:03:01]} 2...
d5 {[%clk 0:03:00]} 3. exd5 {[%clk 0:03:01.9]} 3... cxd5 {[%clk 0:02:59]} 4. Bd3
{[%clk 0:03:02.6]} 4... Nc6 {[%clk 0:02:58.6]} 5. c3 {[%clk 0:03:03.1]} 5... Qc7
{[%clk 0:02:58.9]} 6. Ne2 {[%clk 0:03:02.9]} 6... Bg4 {[%clk 0:02:58.3]} 7. O-O
{[%clk 0:03:03.4]} 7... e6 {[%clk 0:02:57.9]} 8. Qe1 {[%clk 0:03:03.7]} 8... Bd6
{[%clk 0:02:56.9]} 9. f3 {[%clk 0:03:04]} 9... Bh5 {[%clk 0:02:55.4]} 10. Qh4
{[%clk 0:03:01.1]} 10... Bg6 {[%clk 0:02:25.4]} 11. Bxg6 {[%clk 0:02:59.9]}
11... fxg6 {[%clk 0:02:26.3]} 12. Bf4 {[%clk 0:03:00]} 12... Nge7 {[%clk
0:02:19.5]} 13. Bxd6 {[%clk 0:02:45]} 13... Qxd6 {[%clk 0:02:20.4]} 14. Qf4
{[%clk 0:02:45.4]} 14... Qd7 {[%clk 0:01:59.8]} 15. Nd2 {[%clk 0:02:38.1]} 15...
Nf5 {[%clk 0:01:58.1]} 16. Qg4 {[%clk 0:02:12.1]} 16... Ne3 {[%clk 0:01:54.3]}
17. Qf4 {[%clk 0:02:03.8]} 17... Nxf1 {[%clk 0:01:54.2]} 18. Rxf1 {[%clk
0:02:03.5]} 18... Qf7 {[%clk 0:01:49.9]} 19. Qd6 {[%clk 0:01:58.8]} 19... Qe7
{[%clk 0:01:50.3]} 20. Qf4 {[%clk 0:01:58.3]} 20... g5 {[%clk 0:01:50.8]} 21.
Qg4 {[%clk 0:01:56.5]} 21... O-O {[%clk 0:01:51.3]} 22. Nc1 {[%clk 0:01:53.8]}
22... e5 {[%clk 0:01:46.8]} 23. Re1 {[%clk 0:01:53.6]} 23... Rae8 {[%clk
0:01:38.4]} 24. Nd3 {[%clk 0:01:51]} 24... Qc7 {[%clk 0:01:32.7]} 25. Qxg5
{[%clk 0:01:42.8]} 25... exd4 {[%clk 0:01:29.7]} 26. Qxd5+ {[%clk 0:01:42.6]}
26... Qf7 {[%clk 0:01:29.3]} 27. Qxf7+ {[%clk 0:01:37]} 27... Kxf7 {[%clk
0:01:30.2]} 28. Ne4 {[%clk 0:01:35.7]} 28... Rg8 {[%clk 0:01:14.8]} 29. Nd6+
{[%clk 0:01:35.3]} 1-0

[Event "Late-Titled-Tuesday-Blitz-June-18-2024"]
[Site "Chess.com"]
[Date "2024.06.18"]
[Round "2"]
[White "Lady_Nika"]
[Black "talaicito"]
[Result "1-0"]
[WhiteElo "2517"]
[BlackElo "2303"]
[TimeControl "180+1"]
[EndTime "14:16:14 PDT"]
[Termination "Lady_Nika won by resignation"]

1. e4 {[%clk 0:03:00.9]} 1... c5 {[%clk 0:03:00.1]} 2. Nf3 {[%clk 0:02:57.2]}
2... d6 {[%clk 0:03:00.4]} 3. g3 {[%clk 0:02:57]} 3... Nf6 {[%clk 0:02:53.2]} 4.
Qe2 {[%clk 0:02:55.6]} 4... Nc6 {[%clk 0:02:48]} 5. Bg2 {[%clk 0:02:55.3]} 5...
Bg4 {[%clk 0:02:48.4]} 6. c3 {[%clk 0:02:54.8]} 6... Ne5 {[%clk 0:02:42]} 7. h3
{[%clk 0:02:50.1]} 7... Bxf3 {[%clk 0:02:27.1]} 8. Bxf3 {[%clk 0:02:48.8]} 8...
c4 {[%clk 0:02:27.5]} 9. O-O {[%clk 0:02:47.2]} 9... Nxf3+ {[%clk 0:02:26.2]}
10. Qxf3 {[%clk 0:02:46.3]} 10... Qd7 {[%clk 0:02:25.5]} 11. Kg2 {[%clk
0:02:40.5]} 11... g6 {[%clk 0:02:17.6]} 12. Na3 {[%clk 0:02:39.7]} 12... b5
{[%clk 0:02:16.2]} 13. e5 {[%clk 0:02:36.6]} 13... Nd5 {[%clk 0:01:38.6]} 14.
Qxd5 {[%clk 0:02:35.3]} 14... Rb8 {[%clk 0:01:39]} 15. exd6 {[%clk 0:02:33.3]}
15... e6 {[%clk 0:01:34.5]} 16. Qd4 {[%clk 0:02:29.5]} 16... Rg8 {[%clk
0:01:33.5]} 17. d3 {[%clk 0:02:26.5]} 17... Bxd6 {[%clk 0:01:22.4]} 18. dxc4
{[%clk 0:02:25.6]} 18... Bxa3 {[%clk 0:01:19.1]} 19. Qxd7+ {[%clk 0:02:23.4]}
19... Kxd7 {[%clk 0:01:19.1]} 20. bxa3 {[%clk 0:02:24]} 20... bxc4 {[%clk
0:01:18.8]} 21. Be3 {[%clk 0:02:24]} 21... a6 {[%clk 0:01:13.3]} 22. Rfd1+
{[%clk 0:02:23.2]} 22... Ke7 {[%clk 0:01:03.1]} 23. Rd4 {[%clk 0:02:24.1]} 23...
Rgc8 {[%clk 0:01:01.2]} 24. Rad1 {[%clk 0:02:23.5]} 24... Rb2 {[%clk 0:01:00.5]}
25. Bg5+ {[%clk 0:02:22.7]} 25... Kf8 {[%clk 0:00:50.2]} 26. Bf6 {[%clk
0:02:22.7]} 26... Rbb8 {[%clk 0:00:43.1]} 27. Rd8+ {[%clk 0:02:22]} 27... Rxd8
{[%clk 0:00:42.8]} 28. Rxd8+ {[%clk 0:02:22.6]} 28... Rxd8 {[%clk 0:00:42.6]}
29. Bxd8 {[%clk 0:02:23.5]} 29... f5 {[%clk 0:00:40.1]} 30. Kf3 {[%clk
0:02:23.2]} 30... e5 {[%clk 0:00:39.9]} 31. Bc7 {[%clk 0:02:23.3]} 31... e4+
{[%clk 0:00:39.9]} 32. Ke3 {[%clk 0:02:23.8]} 32... Ke7 {[%clk 0:00:38.4]} 33.
Kd4 {[%clk 0:02:24]} 33... Kd7 {[%clk 0:00:37.6]} 34. Bf4 {[%clk 0:02:24.4]} 1-0

[Event "Late-Titled-Tuesday-Blitz-June-18-2024"]
[Site "Chess.com"]
[Date "2024.06.18"]
[Round "2"]
[White "Bauman_Guy"]
[Black "ChessSG1"]
[Result "1-0"]
[WhiteElo "2908"]
[BlackElo "2492"]
[TimeControl "180+1"]
[EndTime "14:16:21 PDT"]
[Termination "Bauman_Guy won by resignation"]

1. e4 {[%clk 0:03:00.9]} 1... c5 {[%clk 0:02:59.4]} 2. Nf3 {[%clk 0:03:00.9]}
2... g6 {[%clk 0:02:59.8]} 3. d4 {[%clk 0:03:01.1]} 3... cxd4 {[%clk 0:03:00.7]}
4. Nxd4 {[%clk 0:03:00.6]} 4... Nc6 {[%clk 0:03:00.5]} 5. c4 {[%clk 0:03:00.8]}
5... Bg7 {[%clk 0:02:57.8]} 6. Be3 {[%clk 0:03:00.2]} 6... Nf6 {[%clk
0:02:56.4]} 7. Nc3 {[%clk 0:03:00.1]} 7... d6 {[%clk 0:02:56.3]} 8. Be2 {[%clk
0:03:00.4]} 8... O-O {[%clk 0:02:55.8]} 9. O-O {[%clk 0:03:00.5]} 9... Bd7
{[%clk 0:02:56.5]} 10. f3 {[%clk 0:03:00.8]} 10... Nxd4 {[%clk 0:02:50]} 11.
Bxd4 {[%clk 0:03:01.7]} 11... a5 {[%clk 0:02:50.4]} 12. b3 {[%clk 0:03:02.1]}
12... Bc6 {[%clk 0:02:50.5]} 13. Qd2 {[%clk 0:03:02.6]} 13... Nd7 {[%clk
0:02:50.7]} 14. Bf2 {[%clk 0:03:03.3]} 14... Be5 {[%clk 0:02:45]} 15. Rfe1
{[%clk 0:03:03.2]} 15... e6 {[%clk 0:02:44]} 16. Bf1 {[%clk 0:03:03]} 16... Qf6
{[%clk 0:02:36.9]} 17. Rac1 {[%clk 0:03:02.8]} 17... Nc5 {[%clk 0:02:27.3]} 18.
Ne2 {[%clk 0:03:02.8]} 18... Qe7 {[%clk 0:02:18.6]} 19. Nd4 {[%clk 0:03:01.8]}
19... Rfd8 {[%clk 0:02:09.7]} 20. Rcd1 {[%clk 0:03:01.5]} 20... Qc7 {[%clk
0:01:44.3]} 21. g3 {[%clk 0:02:51.5]} 21... Bg7 {[%clk 0:01:27]} 22. Qe3 {[%clk
0:02:49.7]} 22... Re8 {[%clk 0:01:15.3]} 23. Rd2 {[%clk 0:02:44.4]} 23... Rad8
{[%clk 0:01:15.2]} 24. Red1 {[%clk 0:02:44.6]} 24... d5 {[%clk 0:01:15.5]} 25.
Nxc6 {[%clk 0:02:43.8]} 25... bxc6 {[%clk 0:00:47]} 26. Qxc5 {[%clk 0:02:39.9]}
26... Bh6 {[%clk 0:00:44.2]} 27. f4 {[%clk 0:02:31.2]} 27... Bf8 {[%clk
0:00:42.9]} 28. Qb6 {[%clk 0:02:30.9]} 28... Qd7 {[%clk 0:00:32.3]} 29. cxd5
{[%clk 0:02:29.5]} 29... exd5 {[%clk 0:00:27.6]} 30. exd5 {[%clk 0:02:29.4]}
30... c5 {[%clk 0:00:26.5]} 31. d6 {[%clk 0:02:24.2]} 31... Rb8 {[%clk
0:00:26.3]} 32. Qxc5 {[%clk 0:02:23.9]} 32... Rec8 {[%clk 0:00:26.4]} 33. Qxa5
{[%clk 0:02:23.8]} 33... Ra8 {[%clk 0:00:26.2]} 34. Qd5 {[%clk 0:02:23.7]} 1-0

[Event "Late-Titled-Tuesday-Blitz-June-18-2024"]
[Site "Chess.com"]
[Date "2024.06.18"]
[Round "2"]
[White "Pachonpower"]
[Black "ElCoachRene"]
[Result "1-0"]
[WhiteElo "2452"]
[BlackElo "2082"]
[TimeControl "180+1"]
[EndTime "14:16:22 PDT"]
[Termination "Pachonpower won by resignation"]

1. e4 {[%clk 0:03:00.9]} 1... Nc6 {[%clk 0:02:14.2]} 2. d4 {[%clk 0:03:00]} 2...
d5 {[%clk 0:02:14.6]} 3. e5 {[%clk 0:02:57]} 3... f6 {[%clk 0:02:14.7]} 4. Nf3
{[%clk 0:02:56]} 4... Bg4 {[%clk 0:02:13.4]} 5. Bb5 {[%clk 0:02:55.6]} 5... Qd7
{[%clk 0:02:12.6]} 6. O-O {[%clk 0:02:54.8]} 6... a6 {[%clk 0:02:11.4]} 7. Bxc6
{[%clk 0:02:53.9]} 7... Qxc6 {[%clk 0:02:11]} 8. Re1 {[%clk 0:02:52.5]} 8... e6
{[%clk 0:02:08.1]} 9. c3 {[%clk 0:02:51]} 9... f5 {[%clk 0:02:06.9]} 10. Nbd2
{[%clk 0:02:49.2]} 10... Nh6 {[%clk 0:02:06.1]} 11. h3 {[%clk 0:02:49.5]} 11...
Bh5 {[%clk 0:02:04.1]} 12. Nf1 {[%clk 0:02:41.7]} 12... Nf7 {[%clk 0:01:56.5]}
13. Ng3 {[%clk 0:02:41.6]} 13... Bxf3 {[%clk 0:01:55.7]} 14. Qxf3 {[%clk
0:02:41.6]} 14... Be7 {[%clk 0:01:55.3]} 15. Qh5 {[%clk 0:02:38.1]} 15... g6
{[%clk 0:01:53]} 16. Qf3 {[%clk 0:02:38.1]} 16... O-O {[%clk 0:01:52.4]} 17. Bd2
{[%clk 0:02:30.4]} 17... b5 {[%clk 0:01:49.3]} 18. Qd3 {[%clk 0:02:26.9]} 18...
Ng5 {[%clk 0:01:44.9]} 19. h4 {[%clk 0:02:15]} 19... Ne4 {[%clk 0:01:44.3]} 20.
h5 {[%clk 0:02:15.4]} 20... Qc4 {[%clk 0:01:38.8]} 21. Qxc4 {[%clk 0:02:07]}
21... bxc4 {[%clk 0:01:38]} 22. Nxe4 {[%clk 0:02:06.6]} 22... fxe4 {[%clk
0:01:35.8]} 23. hxg6 {[%clk 0:02:05.9]} 23... hxg6 {[%clk 0:01:34.8]} 24. b3
{[%clk 0:02:06.5]} 24... Rab8 {[%clk 0:01:22.6]} 25. bxc4 {[%clk 0:02:03]} 25...
Rb2 {[%clk 0:01:19.9]} 26. Be3 {[%clk 0:01:54.6]} 26... c6 {[%clk 0:01:19]} 27.
cxd5 {[%clk 0:01:54.2]} 27... cxd5 {[%clk 0:01:18.5]} 28. Reb1 {[%clk
0:01:54.8]} 28... Rfb8 {[%clk 0:01:17.3]} 29. Rxb2 {[%clk 0:01:55]} 29... Rxb2
{[%clk 0:01:17]} 30. a4 {[%clk 0:01:50.3]} 30... Kf7 {[%clk 0:01:07.7]} 31. Rc1
{[%clk 0:01:49.1]} 31... Ra2 {[%clk 0:01:02.9]} 32. c4 {[%clk 0:01:49.5]} 32...
dxc4 {[%clk 0:00:55.5]} 33. Rxc4 {[%clk 0:01:50.4]} 33... Ra1+ {[%clk
0:00:54.9]} 34. Kh2 {[%clk 0:01:50.1]} 34... Rxa4 {[%clk 0:00:51.9]} 35. Rxa4
{[%clk 0:01:49.7]} 1-0

[Event "Late-Titled-Tuesday-Blitz-June-18-2024"]
[Site "Chess.com"]
[Date "2024.06.18"]
[Round "2"]
[White "dozer80"]
[Black "sammartin99"]
[Result "0-1"]
[WhiteElo "2669"]
[BlackElo "2371"]
[TimeControl "180+1"]
[EndTime "14:16:25 PDT"]
[Termination "sammartin99 won by resignation"]

1. Nf3 {[%clk 0:03:00.9]} 1... d5 {[%clk 0:02:59.8]} 2. e3 {[%clk 0:02:58.5]}
2... Nf6 {[%clk 0:02:59.9]} 3. b3 {[%clk 0:02:58.7]} 3... Bg4 {[%clk 0:02:59.1]}
4. Bb2 {[%clk 0:02:58]} 4... Nbd7 {[%clk 0:02:58.7]} 5. d3 {[%clk 0:02:56.2]}
5... e5 {[%clk 0:02:57.2]} 6. h3 {[%clk 0:02:55.2]} 6... Bxf3 {[%clk 0:02:57.2]}
7. Qxf3 {[%clk 0:02:56.1]} 7... c6 {[%clk 0:02:57.8]} 8. a3 {[%clk 0:02:55.1]}
8... Bd6 {[%clk 0:02:58]} 9. Nd2 {[%clk 0:02:54.6]} 9... a5 {[%clk 0:02:56.6]}
10. g4 {[%clk 0:02:54.5]} 10... O-O {[%clk 0:02:54.1]} 11. Bg2 {[%clk
0:02:49.5]} 11... Qe7 {[%clk 0:02:51.4]} 12. O-O {[%clk 0:02:47.7]} 12... a4
{[%clk 0:02:47]} 13. b4 {[%clk 0:02:45.8]} 13... Ne8 {[%clk 0:02:32.7]} 14. c4
{[%clk 0:02:42.6]} 14... dxc4 {[%clk 0:02:09.1]} 15. Nxc4 {[%clk 0:02:43.5]}
15... Bc7 {[%clk 0:02:08]} 16. e4 {[%clk 0:02:24.3]} 16... Nd6 {[%clk 0:02:05]}
17. Ne3 {[%clk 0:02:24.1]} 17... Nb5 {[%clk 0:02:01.9]} 18. Nf5 {[%clk
0:02:22.4]} 18... Qe6 {[%clk 0:02:02.4]} 19. Rfe1 {[%clk 0:02:14.1]} 19... Bb6
{[%clk 0:01:57.4]} 20. Rad1 {[%clk 0:02:11.8]} 20... Rad8 {[%clk 0:01:54.9]} 21.
Qg3 {[%clk 0:02:06.5]} 21... g6 {[%clk 0:01:48.3]} 22. Kh2 {[%clk 0:02:05.2]}
22... Rfe8 {[%clk 0:01:39]} 23. f4 {[%clk 0:02:03.3]} 23... exf4 {[%clk
0:01:33.6]} 24. Nh6+ {[%clk 0:01:54]} 24... Kf8 {[%clk 0:01:33.3]} 25. Qxf4
{[%clk 0:01:54.7]} 25... Bc7 {[%clk 0:01:31.2]} 26. e5 {[%clk 0:01:52.8]} 26...
Nxe5 {[%clk 0:01:23.5]} 27. Kh1 {[%clk 0:01:50.9]} 27... Nxd3 {[%clk 0:01:09.6]}
28. Rxe6 {[%clk 0:01:49.8]} 28... Bxf4 {[%clk 0:01:00.7]} 29. Rxe8+ {[%clk
0:01:45.2]} 29... Kxe8 {[%clk 0:01:01.6]} 0-1

[Event "Late-Titled-Tuesday-Blitz-June-18-2024"]
[Site "Chess.com"]
[Date "2024.06.18"]
[Round "2"]
[White "dabee"]
[Black "js20000"]
[Result "0-1"]
[WhiteElo "2548"]
[BlackElo "2793"]
[TimeControl "180+1"]
[EndTime "14:16:27 PDT"]
[Termination "js20000 won by resignation"]

1. d4 {[%clk 0:03:00.9]} 1... d6 {[%clk 0:03:00]} 2. e4 {[%clk 0:02:59.7]} 2...
Nf6 {[%clk 0:02:59.2]} 3. Nc3 {[%clk 0:02:59]} 3... e6 {[%clk 0:02:59.2]} 4. f4
{[%clk 0:02:57.5]} 4... Nc6 {[%clk 0:02:58.7]} 5. Nf3 {[%clk 0:02:57.4]} 5... d5
{[%clk 0:02:59]} 6. e5 {[%clk 0:02:56.7]} 6... Ne4 {[%clk 0:02:59.5]} 7. Bd3
{[%clk 0:02:55.3]} 7... Bb4 {[%clk 0:02:59.6]} 8. Bd2 {[%clk 0:02:53.2]} 8...
Bxc3 {[%clk 0:02:59.7]} 9. bxc3 {[%clk 0:02:51.9]} 9... Ne7 {[%clk 0:02:52.4]}
10. c4 {[%clk 0:02:43.9]} 10... Nxd2 {[%clk 0:02:51.7]} 11. Qxd2 {[%clk
0:02:43.4]} 11... dxc4 {[%clk 0:02:51.2]} 12. Bxc4 {[%clk 0:02:43]} 12... b6
{[%clk 0:02:49]} 13. Bb5+ {[%clk 0:02:23.8]} 13... Bd7 {[%clk 0:02:42.9]} 14.
Bxd7+ {[%clk 0:02:21]} 14... Qxd7 {[%clk 0:02:43.8]} 15. c4 {[%clk 0:02:20.1]}
15... Rd8 {[%clk 0:02:40.7]} 16. O-O {[%clk 0:02:10.9]} 16... c5 {[%clk
0:02:40.5]} 17. Rfd1 {[%clk 0:02:08.9]} 17... cxd4 {[%clk 0:02:40.7]} 18. Qxd4
{[%clk 0:02:08.8]} 18... Qxd4+ {[%clk 0:02:40.5]} 19. Nxd4 {[%clk 0:02:06.1]}
19... O-O {[%clk 0:02:34.7]} 20. Nb5 {[%clk 0:02:02.9]} 20... Nc6 {[%clk
0:02:28.3]} 21. Kf2 {[%clk 0:01:46.2]} 21... f6 {[%clk 0:02:28.1]} 22. exf6
{[%clk 0:01:44.8]} 22... gxf6 {[%clk 0:02:27.3]} 23. Ke3 {[%clk 0:01:26.9]}
23... Kf7 {[%clk 0:02:21.4]} 24. Rac1 {[%clk 0:01:21.8]} 24... Ke7 {[%clk
0:02:19.2]} 25. g3 {[%clk 0:01:17]} 25... a6 {[%clk 0:02:15.5]} 26. Nd4 {[%clk
0:01:14.6]} 26... Na5 {[%clk 0:02:08.8]} 27. a4 {[%clk 0:01:10.3]} 27... Rc8
{[%clk 0:02:07.5]} 28. Kd3 {[%clk 0:00:50.3]} 28... Rfd8 {[%clk 0:02:05.3]} 29.
Rc3 {[%clk 0:00:47.6]} 29... e5 {[%clk 0:02:02]} 0-1